[Event "The Kvibergspelen 2024"]
[Site "Kviberg Park Hotel & Conference, Krutvagen 2, Gothenburg, Sweden"]
[Date "2024.09.07"]
[Round "5.18"]
[White "Al Waeli, Laith"]
[Black "Sandberg, Lucas"]
[Result "1/2-1/2"]
[TimeControl "15 minutes + 5 seconds per move from move one (Round 1 - 4) / 90 minutes + 30 seconds per move from move one (Round 5 - 8)"]
[WhiteTitle "FM"]
[WhiteFideId "4801059"]
[BlackFideId "1773712"]
[WhiteElo "2049"]
[BlackElo "1887"]

1. e4 {[%clk 01:25:38]} {[%emt 00:05:20]} c5 {[%clk 01:30:18]} {[%emt
00:00:42]} 2. Nf3 {[%clk 01:25:58]} {[%emt 00:00:08]} d6 {[%clk 01:30:38]}
{[%emt 00:00:12]} 3. d4 {[%clk 01:25:59]} {[%emt 00:00:28]} cxd4 {[%clk
01:31:01]} {[%emt 00:00:08]} 4. Nxd4 {[%clk 01:26:10]} {[%emt 00:00:19]} Nf6
{[%clk 01:30:49]} {[%emt 00:00:42]} 5. Nc3 {[%clk 01:26:19]} {[%emt 00:00:21]}
g6 {[%clk 01:31:10]} {[%emt 00:00:09]} 6. Be3 {[%clk 01:24:59]} {[%emt
00:01:50]} Bg7 {[%clk 01:31:28]} {[%emt 00:00:10]} 7. f3 {[%clk 01:25:22]}
{[%emt 00:00:07]} O-O {[%clk 01:31:54]} {[%emt 00:00:05]} 8. Qd2 {[%clk
01:25:48]} {[%emt 00:00:04]} Nc6 {[%clk 01:32:22]} {[%emt 00:00:02]} 9. O-O-O
{[%clk 01:26:09]} {[%emt 00:00:10]} d5 {[%clk 01:32:27]} {[%emt 00:00:25]} 10.
Kb1 {[%clk 01:22:11]} {[%emt 00:04:26]} Nxd4 {[%clk 01:32:01]} {[%emt
00:00:57]} 11. e5 {[%clk 01:22:10]} {[%emt 00:00:32]} Nf5 {[%clk 01:32:24]}
{[%emt 00:00:06]} 12. exf6 {[%clk 01:22:19]} {[%emt 00:00:21]} exf6 {[%clk
01:32:43]} {[%emt 00:00:11]} 13. Bc5 {[%clk 01:18:27]} {[%emt 00:04:23]} d4
{[%clk 01:31:29]} {[%emt 00:01:44]} 14. Bxf8 {[%clk 01:14:38]} {[%emt
00:04:20]} Qxf8 {[%clk 01:31:01]} {[%emt 00:00:57]} 15. Nb5 {[%clk 01:06:30]}
{[%emt 00:08:39]} Be6 {[%clk 01:14:06]} {[%emt 00:17:21]} 16. Bd3 {[%clk
00:42:23]} {[%emt 00:24:39]} Ne3 {[%clk 01:05:55]} {[%emt 00:08:42]} 17. Rde1
{[%clk 00:40:27]} {[%emt 00:02:27]} f5 {[%clk 00:42:34]} {[%emt 00:23:50]} 18.
Nxd4 {[%clk 00:20:57]} {[%emt 00:19:59]} Bxd4 {[%clk 00:41:31]} {[%emt
00:01:33]} 19. Rxe3 {[%clk 00:21:00]} {[%emt 00:00:29]} Bxe3 {[%clk 00:40:23]}
{[%emt 00:01:38]} 20. Qxe3 {[%clk 00:21:27]} {[%emt 00:00:02]} a5 {[%clk
00:33:03]} {[%emt 00:07:49]} 21. a3 {[%clk 00:16:08]} {[%emt 00:05:50]} Qd6
{[%clk 00:31:45]} {[%emt 00:01:47]} 22. Re1 {[%clk 00:14:52]} {[%emt 00:01:46]}
Qxh2 {[%clk 00:29:11]} {[%emt 00:03:05]} 23. Qb6 {[%clk 00:11:36]} {[%emt
00:03:46]} Qh4 {[%clk 00:24:58]} {[%emt 00:04:43]} 24. Rd1 {[%clk 00:10:24]}
{[%emt 00:01:41]} Qe7 {[%clk 00:21:44]} {[%emt 00:03:44]} 25. Bb5 {[%clk
00:09:49]} {[%emt 00:01:05]} Kg7 {[%clk 00:21:07]} {[%emt 00:01:08]} 26. f4
{[%clk 00:08:08]} {[%emt 00:02:11]} h5 {[%clk 00:19:24]} {[%emt 00:02:12]} 27.
g3 {[%clk 00:08:27]} {[%emt 00:00:12]} Kh7 {[%clk 00:15:07]} {[%emt 00:04:47]}
28. Rd6 {[%clk 00:07:51]} {[%emt 00:01:06]} Rc8 {[%clk 00:15:06]} {[%emt
00:00:31]} 29. Qd4 {[%clk 00:07:55]} {[%emt 00:00:25]} Qc7 {[%clk 00:14:31]}
{[%emt 00:01:05]} 30. c4 {[%clk 00:04:57]} {[%emt 00:03:29]} Qc5 {[%clk
00:13:41]} {[%emt 00:01:21]} 31. Qxc5 Rxc5 {[%clk 00:14:09]} 32. b4 {[%clk
00:05:27]} axb4 {[%clk 00:14:25]} {[%emt 00:00:15]} 33. axb4 {[%clk 00:05:56]}
{[%emt 00:00:01]} Rc7 {[%clk 00:13:54]} {[%emt 00:01:00]} 34. c5 {[%clk
00:05:51]} {[%emt 00:00:35]} Kg7 {[%clk 00:13:12]} {[%emt 00:01:13]} 35. Kb2
{[%clk 00:06:10]} {[%emt 00:00:10]} Kf6 {[%clk 00:12:49]} {[%emt 00:00:54]} 36.
Kc3 {[%clk 00:05:52]} {[%emt 00:00:47]} Ke7 {[%clk 00:12:51]} {[%emt 00:00:29]}
37. Kd4 {[%clk 00:05:35]} {[%emt 00:00:46]} Rc8 {[%clk 00:10:38]} {[%emt
00:02:43]} 38. Bc4 {[%clk 00:05:35]} {[%emt 00:00:30]} Bxc4 {[%clk 00:06:30]}
{[%emt 00:04:38]} 39. Kxc4 {[%clk 00:05:46]} {[%emt 00:00:19]} Rc6 {[%clk
00:06:47]} {[%emt 00:00:13]} 40. Rd3 {[%clk 00:02:56]} {[%emt 00:03:20]} Re6
{[%clk 00:05:35]} {[%emt 00:01:42]} 41. Kb5 {[%clk 00:03:10]} {[%emt 00:00:16]}
f6 {[%clk 00:05:02]} {[%emt 00:01:03]} 42. Ka5 {[%clk 00:03:23]} {[%emt
00:00:17]} Rc6 {[%clk 00:04:08]} {[%emt 00:01:24]} 43. b5 {[%clk 00:01:57]}
{[%emt 00:01:56]} Rxc5 {[%clk 00:03:46]} {[%emt 00:00:52]} 44. Kb6 {[%clk
00:02:26]} {[%emt 00:00:02]} Rc4 {[%clk 00:03:49]} {[%emt 00:00:26]} 45. Kxb7
{[%clk 00:02:53]} {[%emt 00:00:03]} g5 {[%clk 00:03:28]} {[%emt 00:00:51]} 46.
Rf3 {[%clk 00:02:11]} {[%emt 00:01:13]} Ke6 {[%clk 00:03:30]} {[%emt 00:00:28]}
47. b6 {[%clk 00:02:26]} {[%emt 00:00:15]} gxf4 {[%clk 00:03:03]} {[%emt
00:00:57]} 48. gxf4 {[%clk 00:02:45]} {[%emt 00:00:10]} Kd5 {[%clk 00:03:27]}
{[%emt 00:00:06]} 49. Rh3 {[%clk 00:00:56]} {[%emt 00:02:19]} Ke4 {[%clk
00:02:59]} {[%emt 00:00:58]} 50. Rxh5 {[%clk 00:01:15]} {[%emt 00:00:11]} Rc1
{[%clk 00:03:17]} {[%emt 00:00:12]} 51. Rh6 {[%clk 00:01:17]} {[%emt 00:00:28]}
Kxf4 {[%clk 00:03:30]} {[%emt 00:00:17]} 52. Rxf6 {[%clk 00:01:43]} {[%emt
00:00:04]} Ke4 {[%clk 00:03:31]} {[%emt 00:00:27]} 53. Rc6 {[%clk 00:02:07]}
{[%emt 00:00:07]} Rb1 {[%clk 00:03:56]} {[%emt 00:00:06]} 54. Rc4+ {[%clk
00:01:59]} {[%emt 00:00:37]} Ke3 {[%clk 00:04:18]} {[%emt 00:00:09]} 55. Rc5
{[%clk 00:01:40]} {[%emt 00:00:49]} f4 {[%clk 00:04:31]} {[%emt 00:00:17]} 56.
Kc6 {[%clk 00:01:40]} {[%emt 00:00:30]} f3 {[%clk 00:03:41]} {[%emt 00:01:20]}
57. Rc3+ {[%clk 00:01:12]} {[%emt 00:00:58]} 1/2-1/2

[Event "The Kvibergspelen 2024"]
[Site "Kviberg Park Hotel & Conference, Krutvagen 2, Gothenburg, Sweden"]
[Date "2024.09.07"]
[Round "5.20"]
[White "Nilsson, Patrik"]
[Black "Bodin, Bjorn"]
[Result "1-0"]
[TimeControl "15 minutes + 5 seconds per move from move one (Round 1 - 4) / 90 minutes + 30 seconds per move from move one (Round 5 - 8)"]
[WhiteFideId "1708171"]
[BlackFideId "1773747"]
[WhiteElo "2124"]
[BlackElo "1704"]

1. d4 {[%clk 01:30:55]} {[%emt 00:00:03]} Nf6 {[%clk 01:30:49]} {[%emt
00:00:12]} 2. Nf3 {[%clk 01:30:03]} {[%emt 00:01:23]} d5 {[%clk 01:30:44]}
{[%emt 00:00:35]} 3. e3 {[%clk 01:30:04]} {[%emt 00:00:28]} c5 {[%clk
01:30:04]} {[%emt 00:01:10]} 4. b3 {[%clk 01:29:58]} {[%emt 00:00:35]} Nc6
{[%clk 01:28:47]} {[%emt 00:01:47]} 5. Bd3 {[%clk 01:28:20]} {[%emt 00:02:09]}
Bg4 {[%clk 01:26:56]} {[%emt 00:02:22]} 6. Bb2 {[%clk 01:27:42]} {[%emt
00:01:07]} e6 {[%clk 01:25:41]} {[%emt 00:01:45]} 7. O-O {[%clk 01:26:29]}
{[%emt 00:01:43]} Bd6 {[%clk 01:25:07]} {[%emt 00:01:04]} 8. c4 {[%clk
01:19:55]} {[%emt 00:07:05]} cxd4 {[%clk 01:20:29]} {[%emt 00:05:08]} 9. exd4
{[%clk 01:19:16]} {[%emt 00:01:08]} O-O {[%clk 01:20:06]} {[%emt 00:00:53]} 10.
Nbd2 {[%clk 01:11:23]} {[%emt 00:08:24]} Rc8 {[%clk 01:12:53]} {[%emt
00:07:43]} 11. a3 {[%clk 01:07:42]} {[%emt 00:04:11]} a5 {[%clk 01:07:35]}
{[%emt 00:05:48]} 12. Qb1 {[%clk 00:55:08]} {[%emt 00:13:03]} Nd7 {[%clk
01:00:58]} {[%emt 00:07:07]} 13. cxd5 {[%clk 00:50:18]} {[%emt 00:05:20]} exd5
{[%clk 01:00:56]} {[%emt 00:00:30]} 14. Bxh7+ {[%clk 00:50:36]} {[%emt
00:00:15]} Kh8 {[%clk 01:01:15]} {[%emt 00:00:10]} 15. Bf5 {[%clk 00:50:59]}
{[%emt 00:00:06]} Bxf5 {[%emt 00:03:23]} 16. Qxf5 {[%clk 00:49:52]} {[%emt
00:01:34]} Ne7 {[%clk 00:58:02]} {[%emt 00:00:54]} 17. Qh3+ {[%clk 00:45:44]}
{[%emt 00:04:38]} Kg8 {[%clk 00:58:15]} {[%emt 00:00:16]} 18. Ne5 {[%clk
00:45:57]} {[%emt 00:00:18]} Nf6 {[%clk 00:55:19]} {[%emt 00:03:26]} 19. Rac1
{[%clk 00:44:20]} {[%emt 00:02:07]} Qb6 {[%clk 00:52:12]} {[%emt 00:03:38]} 20.
Rfe1 {[%clk 00:36:43]} {[%emt 00:08:06]} Nc6 {[%clk 00:47:15]} {[%emt
00:05:27]} 21. g4 {[%clk 00:30:07]} {[%emt 00:07:06]} Nh7 {[%clk 00:41:09]}
{[%emt 00:06:36]} 22. Nd7 {[%clk 00:26:12]} {[%emt 00:04:26]} Qd8 {[%clk
00:36:08]} {[%emt 00:05:31]} 23. Nxf8 {[%clk 00:26:14]} {[%emt 00:00:27]} Qxf8
{[%clk 00:36:27]} {[%emt 00:00:11]} 24. Nf3 {[%clk 00:18:28]} {[%emt 00:08:17]}
Bxa3 {[%clk 00:34:11]} {[%emt 00:02:45]} 25. Bxa3 {[%clk 00:18:39]} {[%emt
00:00:20]} Qxa3 {[%clk 00:33:26]} {[%emt 00:01:15]} 26. g5 {[%clk 00:19:00]}
{[%emt 00:00:09]} Rf8 {[%clk 00:33:40]} {[%emt 00:00:15]} 27. Qf5 {[%clk
00:14:12]} {[%emt 00:05:18]} 1-0

[Event "The Kvibergspelen 2024"]
[Site "Kviberg Park Hotel & Conference, Krutvagen 2, Gothenburg, Sweden"]
[Date "2024.09.07"]
[Round "5.21"]
[White "Westlund, Tim"]
[Black "Sigeman, Johan"]
[Result "0-1"]
[TimeControl "15 minutes + 5 seconds per move from move one (Round 1 - 4) / 90 minutes + 30 seconds per move from move one (Round 5 - 8)"]
[WhiteFideId "1754718"]
[BlackFideId "1705601"]
[WhiteElo "1882"]
[BlackElo "2032"]

1. e4 {[%clk 01:30:56]} {[%emt 00:00:03]} e5 {[%clk 01:30:54]} {[%emt
00:00:07]} 2. Nf3 {[%clk 01:30:59]} {[%emt 00:00:27]} Nc6 {[%clk 01:31:16]}
{[%emt 00:00:08]} 3. Bc4 {[%clk 01:30:48]} {[%emt 00:00:41]} Nf6 {[%clk
01:31:31]} {[%emt 00:00:15]} 4. d3 {[%clk 01:30:40]} {[%emt 00:00:38]} h6
{[%clk 01:31:09]} {[%emt 00:00:52]} 5. O-O {[%clk 01:29:03]} {[%emt 00:02:07]}
d6 {[%clk 01:31:30]} {[%emt 00:00:09]} 6. c3 {[%clk 01:28:47]} {[%emt
00:00:45]} g5 {[%clk 01:28:53]} {[%emt 00:03:07]} 7. b4 {[%clk 01:15:09]}
{[%emt 00:14:09]} Bg7 {[%clk 01:26:26]} {[%emt 00:02:56]} 8. Nbd2 {[%clk
01:08:58]} {[%emt 00:06:41]} O-O {[%clk 01:24:43]} {[%emt 00:02:14]} 9. Nb3
{[%clk 01:06:07]} {[%emt 00:03:21]} d5 {[%clk 01:10:29]} {[%emt 00:14:44]} 10.
exd5 {[%clk 01:04:56]} {[%emt 00:01:41]} Nxd5 {[%clk 01:10:09]} {[%emt
00:00:50]} 11. Bd2 {[%clk 01:00:39]} {[%emt 00:04:47]} Bg4 {[%clk 01:05:47]}
{[%emt 00:04:52]} 12. Nc5 {[%clk 00:58:03]} {[%emt 00:03:06]} Rb8 {[%clk
00:58:01]} {[%emt 00:08:16]} 13. Ne4 {[%clk 00:53:02]} {[%emt 00:05:31]} Nb6
{[%clk 00:52:25]} {[%emt 00:06:06]} 14. Bb3 {[%clk 00:51:51]} {[%emt 00:01:41]}
Qxd3 {[%clk 00:50:15]} {[%emt 00:02:40]} 15. Bc2 {[%clk 00:49:54]} {[%emt
00:02:27]} Qd5 {[%clk 00:46:24]} {[%emt 00:04:22]} 16. h4 {[%clk 00:45:50]}
{[%emt 00:04:34]} gxh4 {[%clk 00:37:19]} {[%emt 00:09:34]} 17. Bxh6 {[%clk
00:32:09]} {[%emt 00:14:11]} Qxd1 {[%clk 00:36:50]} {[%emt 00:01:00]} 18. Bxd1
{[%clk 00:32:24]} {[%emt 00:00:13]} Bxf3 {[%clk 00:29:37]} {[%emt 00:07:43]} 19.
Bxg7 {[%clk 00:32:49]} {[%emt 00:00:06]} Bxe4 {[%clk 00:29:36]} {[%emt
00:00:30]} 20. Bxf8 {[%clk 00:33:09]} {[%emt 00:00:11]} Kxf8 {[%clk 00:29:56]}
{[%emt 00:00:10]} 21. Re1 {[%clk 00:33:10]} {[%emt 00:00:29]} Bd3 {[%clk
00:28:28]} {[%emt 00:01:58]} 22. Bf3 {[%clk 00:32:38]} {[%emt 00:01:02]} Nc4
{[%clk 00:23:06]} {[%emt 00:05:52]} 23. Rad1 {[%clk 00:32:00]} {[%emt
00:01:07]} Bf5 {[%clk 00:22:38]} {[%emt 00:00:59]} 24. Be4 {[%clk 00:30:51]}
{[%emt 00:01:39]} Be6 {[%clk 00:21:40]} {[%emt 00:01:27]} 25. Bd5 {[%clk
00:30:27]} {[%emt 00:00:55]} Nb2 {[%clk 00:21:05]} {[%emt 00:01:06]} 26. Rd2
{[%clk 00:30:00]} {[%emt 00:00:55]} Rd8 {[%clk 00:20:18]} {[%emt 00:01:18]} 27.
Rxb2 {[%clk 00:30:01]} {[%emt 00:00:29]} Rxd5 {[%clk 00:20:10]} {[%emt
00:00:38]} 28. Rbe2 {[%clk 00:29:55]} {[%emt 00:00:35]} b5 {[%clk 00:19:04]}
{[%emt 00:01:38]} 29. a3 {[%clk 00:27:57]} h3 {[%clk 00:19:04]} 30. gxh3 {[%clk
00:27:57]} Bxh3 {[%clk 00:18:45]} {[%emt 00:04:47]} 31. Re3 {[%clk 00:26:36]}
Bf5 {[%clk 00:18:15]} {[%emt 00:02:19]} 32. f3 {[%clk 00:26:09]} Rd2 {[%clk
00:18:01]} {[%emt 00:01:43]} 33. R1e2 {[%clk 00:26:03]} Rxe2 {[%clk 00:18:07]}
{[%emt 00:00:59]} 34. Rxe2 {[%clk 00:26:28]} Ke7 {[%clk 00:16:47]} {[%emt
00:01:56]} 35. Kf2 {[%clk 00:25:40]} Bd3 {[%clk 00:16:37]} {[%emt 00:01:56]} 36.
Re3 {[%clk 00:24:35]} Bg6 {[%clk 00:15:28]} {[%emt 00:03:15]} 37. Re2 {[%clk
00:24:05]} Ke6 {[%clk 00:14:47]} {[%emt 00:02:11]} 38. Rd2 {[%clk 00:23:50]} e4
{[%clk 00:12:34]} {[%emt 00:03:27]} 39. fxe4 {[%clk 00:23:43]} Bxe4 {[%clk
00:13:02]} {[%emt 00:00:41]} 40. Ke3 {[%clk 00:22:51]} f5 {[%clk 00:13:26]}
{[%emt 00:01:27]} 41. Rh2 {[%clk 00:22:40]} Kd5 {[%clk 00:11:19]} {[%emt
00:03:18]} 42. Rh8 {[%clk 00:21:18]} Kc4 {[%clk 00:11:27]} {[%emt 00:02:14]} 43.
Kd2 {[%clk 00:21:28]} Kb3 {[%clk 00:11:30]} {[%emt 00:00:47]} 44. Rc8 Kxa3 45.
Rxc7 {[%clk 00:22:00]} {[%emt 00:00:04]} Kb3 {[%clk 00:11:45]} {[%emt
00:00:21]} 46. Rf7 {[%clk 00:21:35]} {[%emt 00:00:53]} Ne5 {[%clk 00:10:15]}
{[%emt 00:02:02]} 47. Rxa7 {[%clk 00:21:01]} {[%emt 00:01:02]} Nc4+ {[%clk
00:10:39]} 48. Kc1 {[%clk 00:20:36]} {[%emt 00:01:02]} Kxc3 {[%clk 00:11:04]}
{[%emt 00:01:37]} 49. Ra2 Kxb4 {[%emt 00:00:43]} 50. Rh2 {[%clk 00:19:31]}
{[%emt 00:00:20]} Kc3 {[%clk 00:11:02]} {[%emt 00:00:33]} 51. Rf2 Kd4 52. Rc2
b4 53. Rf2 b3 {[%clk 00:11:02]} 54. Rh2 {[%clk 00:19:53]} b2+ {[%clk 00:11:09]}
{[%emt 00:04:49]} 0-1

[Event "The Kvibergspelen 2024"]
[Site "Kviberg Park Hotel & Conference, Krutvagen 2, Gothenburg, Sweden"]
[Date "2024.09.07"]
[Round "6.1"]
[White "Kucuksari, Kaan"]
[Black "Sorensen, Hampus"]
[Result "1-0"]
[TimeControl "15 minutes + 5 seconds per move from move one (Round 1 - 4) / 90 minutes + 30 seconds per move from move one (Round 5 - 8)"]
[WhiteTitle "IM"]
[BlackTitle "IM"]
[WhiteFideId "6380166"]
[BlackFideId "8703884"]
[WhiteElo "2455"]
[BlackElo "2420"]

1. d4 {[%clk 01:30:59]} d5 {[%clk 01:30:33]} {[%emt 00:00:28]} 2. Nf3 {[%clk
01:31:13]} {[%emt 00:00:16]} Nf6 {[%clk 01:30:38]} {[%emt 00:00:25]} 3. c4
{[%clk 01:31:39]} {[%emt 00:00:04]} c5 {[%clk 01:30:38]} {[%emt 00:00:31]} 4.
cxd5 {[%clk 01:31:47]} {[%emt 00:00:21]} cxd4 {[%clk 01:31:01]} {[%emt
00:00:06]} 5. Nxd4 {[%clk 01:32:02]} {[%emt 00:00:15]} Nxd5 {[%clk 01:30:23]}
{[%emt 00:01:08]} 6. e4 {[%clk 01:31:31]} {[%emt 00:01:02]} Nf6 {[%clk
01:30:18]} {[%emt 00:00:34]} 7. Nc3 {[%clk 01:31:46]} {[%emt 00:00:17]} e5
{[%clk 01:28:35]} {[%emt 00:02:12]} 8. Bb5+ {[%clk 01:31:14]} {[%emt 00:01:01]}
Bd7 {[%clk 01:22:08]} {[%emt 00:06:56]} 9. Bxd7+ {[%clk 01:31:29]} {[%emt
00:00:17]} Qxd7 {[%clk 01:17:36]} {[%emt 00:05:03]} 10. Nf5 {[%clk 01:31:51]}
{[%emt 00:00:07]} Qxd1+ {[%clk 01:06:29]} {[%emt 00:11:37]} 11. Kxd1 {[%clk
01:31:28]} {[%emt 00:00:53]} g6 {[%clk 01:02:22]} {[%emt 00:04:36]} 12. Ne3
{[%clk 01:31:20]} {[%emt 00:00:38]} Nc6 {[%clk 01:00:43]} {[%emt 00:02:09]} 13.
Ned5 {[%clk 01:31:37]} {[%emt 00:00:13]} Nxd5 {[%clk 01:01:03]} {[%emt
00:00:11]} 14. Nxd5 {[%clk 01:31:52]} {[%emt 00:00:15]} O-O-O {[%clk 01:00:35]}
{[%emt 00:00:57]} 15. Ke2 {[%clk 01:22:58]} {[%emt 00:09:24]} Nd4+ {[%clk
00:52:11]} {[%emt 00:08:54]} 16. Kd3 {[%clk 01:16:20]} {[%emt 00:07:07]} Ne6
{[%clk 00:52:04]} {[%emt 00:00:37]} 17. Be3 {[%clk 01:16:25]} {[%emt 00:00:25]}
Kb8 {[%clk 00:52:08]} {[%emt 00:00:26]} 18. Rac1 {[%clk 01:15:29]} {[%emt
00:01:29]} Bd6 {[%clk 00:49:22]} {[%emt 00:03:14]} 19. Rhd1 {[%clk 01:14:30]}
{[%emt 00:01:29]} Rc8 {[%clk 00:36:48]} {[%emt 00:13:04]} 20. g4 {[%clk
01:08:13]} {[%emt 00:06:47]} Rxc1 {[%clk 00:35:08]} {[%emt 00:02:10]} 21. Rxc1
{[%clk 01:08:11]} {[%emt 00:00:32]} h5 {[%clk 00:34:27]} {[%emt 00:01:10]} 22.
h3 {[%clk 01:04:47]} {[%emt 00:03:54]} b6 {[%clk 00:32:11]} {[%emt 00:02:47]}
23. b4 {[%clk 01:04:41]} {[%emt 00:00:37]} hxg4 {[%clk 00:30:29]} {[%emt
00:02:10]} 24. hxg4 {[%clk 01:05:09]} {[%emt 00:00:03]} Rd8 {[%clk 00:27:31]}
{[%emt 00:03:26]} 25. a3 {[%clk 00:57:09]} {[%emt 00:08:33]} Nc7 {[%clk
00:23:24]} {[%emt 00:04:36]} 26. Rh1 {[%clk 00:36:45]} {[%emt 00:20:55]} f5
{[%clk 00:12:04]} {[%emt 00:11:49]} 27. Bg5 {[%clk 00:32:02]} {[%emt 00:05:13]}
Rg8 {[%clk 00:09:09]} {[%emt 00:03:26]} 28. Nf6 {[%clk 00:28:05]} {[%emt
00:04:27]} Rg7 {[%clk 00:09:20]} {[%emt 00:00:18]} 29. exf5 {[%clk 00:19:29]}
{[%emt 00:09:06]} gxf5 {[%clk 00:09:32]} {[%emt 00:00:19]} 30. gxf5 {[%clk
00:19:28]} {[%emt 00:00:30]} Rxg5 {[%clk 00:03:32]} {[%emt 00:06:29]} 31. Rh8+
{[%clk 00:19:57]} {[%emt 00:00:02]} Kb7 {[%clk 00:03:59]} {[%emt 00:00:03]} 32.
Ne4 {[%clk 00:20:21]} {[%emt 00:00:06]} Rg4 {[%clk 00:02:43]} {[%emt 00:01:45]}
33. Nxd6+ {[%clk 00:20:36]} {[%emt 00:00:16]} Kc6 {[%clk 00:03:12]} {[%emt
00:00:01]} 34. Ne4 {[%clk 00:16:48]} {[%emt 00:04:18]} Rf4 {[%clk 00:03:08]}
{[%emt 00:00:34]} 35. f6 {[%clk 00:16:52]} {[%emt 00:00:25]} Ne6 {[%clk
00:01:52]} {[%emt 00:01:45]} 36. Ke3 {[%clk 00:11:20]} {[%emt 00:06:03]} Nd4
{[%clk 00:00:42]} {[%emt 00:01:40]} 37. Rd8 {[%clk 00:07:37]} {[%emt 00:04:13]}
Rf3+ {[%clk 00:01:05]} {[%emt 00:00:08]} 38. Kd2 {[%clk 00:08:06]} Rf4 {[%clk
00:01:08]} {[%emt 00:00:27]} 39. b5+ {[%clk 00:02:37]} {[%emt 00:05:59]} Kc7
{[%clk 00:00:47]} {[%emt 00:00:52]} 40. Re8 {[%clk 00:03:05]} {[%emt 00:00:02]}
Kd7 {[%clk 00:00:33]} {[%emt 00:00:44]} 41. Re7+ {[%clk 00:02:18]} {[%emt
00:01:16]} Kd8 {[%clk 00:00:53]} {[%emt 00:00:10]} 42. Rxe5 {[%clk 00:02:27]}
{[%emt 00:00:21]} Nf5 {[%clk 00:00:42]} {[%emt 00:00:42]} 43. f7 {[%clk
00:00:56]} {[%emt 00:02:01]} Ne7 {[%clk 00:01:01]} {[%emt 00:00:10]} 44. Ng5
{[%clk 00:01:05]} {[%emt 00:00:21]} Kd7 {[%clk 00:01:26]} {[%emt 00:00:05]} 45.
Ke3 {[%clk 00:01:11]} {[%emt 00:00:24]} Rf6 {[%clk 00:01:55]} {[%emt 00:00:01]}
46. f4 {[%clk 00:01:03]} {[%emt 00:00:38]} Nf5+ {[%clk 00:01:44]} {[%emt
00:00:41]} 47. Kf3 {[%clk 00:00:45]} {[%emt 00:00:48]} Nd6 {[%clk 00:00:39]}
{[%emt 00:01:34]} 48. Re6 {[%clk 00:00:55]} {[%emt 00:00:22]} Rf5 {[%clk
00:00:54]} {[%emt 00:00:14]} 49. Kg4 {[%clk 00:01:10]} {[%emt 00:00:15]} Rxf7
{[%clk 00:00:32]} {[%emt 00:00:51]} 50. Rxd6+ {[%clk 00:01:32]} {[%emt
00:00:09]} 1-0